bitfinex-derivatives/quotes_BNBF0:USTF0_20250708
["timestamp","ask_amount","ask_price","bid_price","bid_amount"]
[1751986403979,0.97753466,659.27,658.2,1.703]
[1751986404180,0.97753466,659.28,658.2,1.703]
[1751986404380,0.97753466,659.27,658.2,1.703]
[1751986404579,0.97753466,659.3,658.2,1.703]
[1751986404880,0.97753466,659.29,658.2,1.703]
[1751986405084,0.97753466,659.28,658.2,1.703]
[1751986405281,0.97753466,659.27,658.2,1.703]
[1751986405481,0.97753466,659.3,658.2,1.703]
[1751986405683,0.97753466,659.29,658.2,1.703]
[1751986405888,0.97753466,659.32,658.2,1.703]
[1751986406087,0.97753466,659.31,658.2,1.703]
[1751986406383,0.97753466,659.3,658.2,1.703]
[1751986406582,0.97753466,659.29,658.2,1.703]
[1751986406787,0.97753466,659.32,658.2,1.703]
[1751986406984,0.97753466,659.31,658.2,1.703]
[1751986407188,0.97753466,659.3,658.2,1.703]
[1751986407384,0.97753466,659.29,658.2,1.703]
[1751986407688,0.97753466,659.32,658.2,1.703]
[1751986407885,0.97753466,659.31,658.2,1.703]
[1751986408088,0.97753466,659.3,658.2,1.703]
[1751986408288,0.97753466,659.29,658.2,1.703]
[1751986408488,0.97753466,659.28,658.2,1.703]
[1751986408690,0.97753466,659.32,658.2,1.703]
[1751986408987,0.97753466,659.31,658.2,1.703]
[1751986409186,0.97753466,659.3,658.2,1.703]
[1751986409488,0.97753466,659.29,658.2,1.703]
[1751986409686,0.97753466,659.28,658.2,1.703]
[1751986409886,0.97753466,659.31,658.2,1.703]
[1751986410086,0.97753466,659.3,658.2,1.703]
[1751986410291,0.97753466,659.29,658.2,1.703]
[1751986410493,0.97753466,659.28,658.2,1.703]
[1751986410690,0.97753466,659.27,658.2,1.703]
[1751986410991,0.97753466,659.3,658.2,1.703]
[1751986411189,0.97753466,659.29,658.2,1.703]
[1751986411488,0.97639768,659.28,658.2,1.703]
[1751986411786,0.97639768,659.27,658.2,1.703]
[1751986411989,0.97639768,659.3,658.2,1.703]
[1751986412192,0.97639768,659.29,658.2,1.703]
[1751986412393,0.97639768,659.28,658.2,1.703]
[1751986412589,0.97639768,659.27,658.2,1.703]
[1751986412890,0.97639768,659.26,658.2,1.703]
[1751986413095,0.97639768,659.29,658.2,1.703]
[1751986413295,0.97639768,659.28,658.2,1.703]
[1751986413493,0.97639768,659.27,658.2,1.703]
[1751986413693,0.97639768,659.26,658.2,1.703]
[1751986413894,0.97639768,659.29,658.2,1.703]
[1751986414097,0.97639768,659.28,658.2,1.703]
[1751986414296,0.97639768,659.27,658.2,1.703]
[1751986414591,0.97639768,659.26,658.2,1.703]
[1751986414796,1.67819262,659.24,658.2,1.703]
[1751986414993,0.97639768,659.23,658.2,1.703]
[1751986415192,0.97639768,659.22,658.2,1.703]
[1751986415391,0.97639768,659.21,658.2,1.703]
[1751986415697,2.6545903,659.23,658.2,1.703]
[1751986415895,0.97639768,659.22,658.2,1.703]
[1751986416093,0.97639768,659.21,658.2,1.703]
[1751986416294,2.6545903,659.22,658.2,1.703]
[1751986416496,0.97639768,659.21,658.2,1.703]
[1751986417393,2.6545903,659.21,658.2,1.703]
[1751986417593,1.67819262,659.21,658.2,1.703]
[1751986417793,1.67819262,659.22,658.2,1.703]
[1751986418495,1.67819262,659.24,658.2,1.703]
[1751986418699,1.67819262,659.23,658.2,1.703]
[1751986418897,2.26254195,659.4,658.2,1.703]
[1751986418898,1.67819262,659.24,658.2,1.703]
[1751986419197,1.67819262,659.25,658.2,1.703]
[1751986419397,1.67819262,659.24,658.2,1.703]
[1751986419597,1.67819262,659.22,658.2,1.703]
[1751986419794,1.67819262,659.21,658.2,1.703]
[1751986420399,1.67819262,659.2,658.2,1.703]
[1751986421203,1.67819262,659.19,658.2,1.703]
[1751986421403,1.67819262,659.18,658.2,1.703]
[1751986422396,3.39381292,659.53,658.2,1.703]
[1751986422397,1.67819262,659.16,658.2,1.703]
[1751986423403,1.67819262,659.14,658.2,1.703]
[1751986424204,1.67819262,659.13,658.2,1.703]
[1751986424499,1.67819262,659.1,658.2,1.703]
[1751986425003,1.67819262,659.09,658.2,1.703]
[1751986425600,1.67819262,659.07,658.2,1.703]
[1751986426104,1.67819262,659.07,658.2,3.39061908]
[1751986426404,1.67819262,659.04,658.21,1.68761908]
[1751986427001,1.67819262,659.03,658.23,1.68761908]
[1751986427404,1.67819262,659.0,658.25,1.68761908]
[1751986428308,1.67819262,658.99,658.26,1.68761908]
[1751986429405,1.67819262,658.98,658.27,1.68761908]
[1751986430302,1.67819262,658.96,658.28,1.68761908]
[1751986430806,1.67819262,658.96,658.29,1.539]
[1751986431107,1.67819262,658.97,658.29,1.539]
[1751986431307,1.67819262,658.96,658.29,1.539]
[1751986431904,1.67819262,658.95,658.29,1.539]
[1751986432107,5.65635488,659.81,658.29,1.539]
[1751986432108,1.67819262,658.94,658.29,1.539]
[1751986432308,1.67819262,658.93,658.29,3.22661908]
[1751986432707,1.67819262,658.93,658.29,1.539]
[1751986432905,1.67819262,658.92,658.29,1.539]
[1751986433208,1.67819262,658.93,658.29,3.22661908]
[1751986433404,1.67819262,658.92,658.3,1.68761908]
[1751986433609,1.67819262,658.92,658.29,3.22661908]
[1751986434408,0.26419678,658.97,658.29,3.22661908]
[1751986434409,1.67819262,658.9,658.32,1.68761908]
[1751986434603,1.67819262,658.89,658.32,1.68761908]
[1751986435310,1.67819262,658.88,658.34,1.68761908]
[1751986435508,1.67819262,658.9,658.33,1.68761908]
[1751986436211,1.67819262,658.89,658.33,1.68761908]
[1751986436509,1.67819262,658.88,658.33,1.68761908]
[1751986436710,1.67819262,658.87,658.34,1.68761908]
[1751986437405,1.67819262,658.86,658.35,1.68761908]
[1751986438310,1.67819262,658.86,658.36,1.68761908]
[1751986438513,1.67819262,658.84,658.37,1.68761908]
[1751986439413,1.67819262,658.82,658.38,1.68761908]
[1751986440415,1.67819262,658.82,658.37,1.68761908]
[1751986440916,1.67819262,658.82,658.38,1.68761908]
[1751986442715,1.67819262,658.85,658.33,1.68761908]
[1751986444023,1.67819262,658.86,658.34,1.68761908]
[1751986444621,1.67819262,658.85,658.33,1.68761908]
[1751986445322,1.67819262,658.85,658.34,1.68761908]
[1751986445522,1.67819262,658.85,658.33,1.68761908]
[1751986445722,1.67819262,658.85,658.34,1.68761908]
[1751986446423,1.67819262,658.86,658.34,1.68761908]
[1751986446720,1.67819262,658.85,658.34,1.68761908]
[1751986447123,1.67819262,658.86,658.34,1.68761908]
[1751986452020,1.67819262,658.85,658.34,1.68761908]
[1751986452626,1.67819262,658.83,658.38,1.68761908]
[1751986453223,1.69652091,658.83,658.38,1.70688359]
[1751986454224,1.69652091,658.82,658.37,1.70688359]
[1751986454527,1.69652091,658.83,658.38,1.70688359]
[1751986455136,1.69652091,658.82,658.39,1.70688359]
[1751986455424,1.69652091,658.81,658.4,1.70688359]
[1751986455826,1.69652091,658.81,658.41,1.70688359]
[1751986456226,1.69652091,658.81,658.42,2.134]
[1751986456429,1.69652091,658.8,658.42,2.134]
[1751986456829,1.69652091,658.8,658.42,3.84088359]
[1751986460336,1.69652091,658.81,658.42,2.134]
[1751986462534,1.69652091,658.84,658.42,2.134]
[1751986463732,0.26419678,658.97,658.42,2.134]
[1751986463934,1.69665132,658.84,658.42,2.134]
[1751986469939,1.69665132,658.83,658.42,2.134]
[1751986472444,1.69665132,658.8,658.42,2.134]
[1751986473246,1.69665132,658.79,658.42,2.134]
[1751986473444,1.69665132,658.81,658.42,2.134]
[1751986474847,1.69665132,658.89,658.42,2.134]
[1751986477456,1.69665132,658.94,658.42,2.134]
[1751986477644,1.69665132,659.0,658.42,2.134]
[1751986478245,1.69665132,658.97,658.42,3.84099647]
[1751986478446,1.69665132,658.99,658.42,2.134]
[1751986478649,1.69665132,659.04,658.46,1.70699647]
[1751986479051,1.69665132,659.0,658.54,1.70699647]
[1751986479346,1.69665132,659.01,658.52,1.70699647]
[1751986479548,0.98753048,659.01,658.52,1.70699647]
[1751986479744,1.69665132,659.02,658.52,1.70699647]
[1751986480650,1.69665132,659.03,658.51,1.70699647]
[1751986481450,1.69665132,659.03,658.5,1.70699647]
[1751986482055,1.69665132,659.03,658.51,1.70699647]
[1751986482250,1.69665132,659.04,658.5,1.70699647]
[1751986483451,1.96082203,659.05,658.49,1.70699647]
[1751986484651,1.96082203,659.05,658.48,1.70699647]
[1751986486153,0.26417071,659.05,658.48,1.70699647]
[1751986486757,0.26417071,659.05,658.47,1.70699647]
[1751986487557,1.69665132,659.06,658.47,1.70699647]
[1751986488056,1.69665132,659.06,658.48,1.70699647]
[1751986488857,1.69665132,659.05,658.5,1.70699647]
[1751986489353,1.69665132,659.05,658.49,1.70699647]
[1751986490357,1.69665132,659.06,658.49,1.70699647]
[1751986491057,1.69665132,659.05,658.51,1.70699647]
[1751986491653,1.69665132,659.05,658.5,1.70699647]
[1751986492156,1.69665132,659.06,658.5,1.70699647]
[1751986493459,1.69665132,659.06,658.49,1.70699647]
[1751986494359,1.69665132,659.07,658.49,1.70699647]
[1751986496057,1.69665132,659.08,658.49,1.70699647]
[1751986498866,1.69665132,659.09,658.48,1.70699647]
[1751986500567,1.69665132,659.09,658.49,1.348]
[1751986501863,1.69665132,659.1,658.49,1.348]
[1751986502563,1.69665132,659.14,658.5,1.70699647]
[1751986502767,0.26412459,659.17,658.49,1.348]
[1751986503862,1.69665132,659.1,658.49,1.348]
[1751986504466,1.69665132,659.09,658.49,1.348]
[1751986504670,0.26412459,659.17,658.49,1.348]
[1751986504864,1.69064268,659.09,658.49,1.348]
[1751986505366,1.69064268,659.08,658.49,1.348]
[1751986506573,1.69064268,659.07,658.49,1.348]
[1751986507071,1.69064268,659.06,658.49,1.348]
[1751986508272,1.69064268,659.04,658.49,1.348]
[1751986509477,1.69064268,659.03,658.49,1.348]
[1751986510577,1.69064268,659.04,658.49,1.348]
[1751986512279,1.69064268,659.0,658.49,1.348]
[1751986512482,1.69064268,658.98,658.49,1.348]
[1751986512881,1.69064268,658.97,658.49,1.348]
[1751986513081,1.69064268,658.92,658.49,1.348]
[1751986513382,1.69064268,658.9,658.49,1.348]
[1751986516481,1.69081524,658.9,658.49,1.348]
[1751986519690,1.69081524,658.91,658.49,1.348]
[1751986522188,0.98428568,659.02,658.49,1.348]
[1751986522385,1.69010888,658.91,658.49,1.348]
[1751986522583,1.69010888,658.92,658.49,1.348]
[1751986522989,1.69010888,658.91,658.49,1.348]
[1751986524886,1.69010888,658.89,658.49,1.348]
[1751986525086,1.69010888,658.97,658.49,1.348]
[1751986527689,1.69010888,658.81,658.49,1.348]
[1751986528390,1.69010888,658.82,658.49,1.348]
[1751986529090,1.69010888,658.83,658.49,1.348]
[1751986529594,1.69010888,658.84,658.49,1.348]
[1751986530190,1.69010888,658.85,658.49,1.348]
[1751986531191,1.69010888,658.86,658.49,1.348]
[1751986531690,1.69010888,658.85,658.49,1.348]
[1751986532088,1.69010888,658.86,658.49,1.348]
[1751986533295,1.69010888,658.81,658.49,1.348]
[1751986534195,1.69010888,658.82,658.49,1.348]
[1751986534396,1.69010888,658.81,658.49,1.348]
[1751986534996,0.98428568,658.94,658.49,1.348]
[1751986534997,1.69010888,658.87,658.49,1.348]
[1751986535398,1.69010888,658.88,658.49,1.348]
[1751986535598,1.69010888,658.89,658.49,1.348]
[1751986537594,1.69010888,658.9,658.49,1.348]
[1751986537999,1.69010888,658.89,658.49,1.348]
[1751986538299,1.69010888,658.91,658.49,1.348]
[1751986539002,1.69010888,658.92,658.49,1.348]
[1751986540000,1.69010888,658.91,658.49,1.348]
[1751986540905,1.69010888,658.92,658.49,1.348]
[1751986541106,1.69010888,658.91,658.49,1.348]
[1751986543308,1.69010888,658.9,658.49,1.348]
[1751986543907,1.69010888,658.87,658.49,1.348]
[1751986544510,1.69010888,658.92,658.49,1.348]
[1751986545110,1.69010888,658.91,658.49,1.348]
[1751986545410,1.69010888,658.92,658.49,1.348]
[1751986545811,1.69010888,658.91,658.49,1.348]
[1751986547512,1.69010888,658.94,658.49,1.348]
[1751986549108,1.69010888,658.96,658.49,1.348]
[1751986549510,1.69010888,658.95,658.49,1.348]
[1751986554216,1.69010888,658.91,658.49,1.348]
[1751986554715,1.69010888,658.89,658.49,1.348]
[1751986556017,1.69010888,658.88,658.49,1.348]
[1751986557012,1.69010888,658.87,658.49,1.348]
[1751986557515,1.69010888,658.86,658.49,1.348]
[1751986557913,1.69010888,658.98,658.49,1.348]
[1751986558416,1.69010888,658.96,658.49,1.348]
[1751986558613,1.69010888,658.96,657.97,0.26424292]
[1751986558817,1.69010888,658.95,657.97,0.26424292]
[1751986559318,1.69010888,658.69,658.02,1.70146413]
[1751986559512,1.69010888,658.7,658.01,1.70146413]
[1751986560116,1.69010888,658.7,658.0,1.70146413]
[1751986561318,1.69010888,658.68,657.99,1.70146413]
[1751986561519,1.69010888,658.69,658.01,2.015]
[1751986562022,1.69010888,658.64,658.01,2.015]
[1751986562214,1.69010888,658.63,658.01,2.015]
[1751986562418,1.69010888,658.64,658.01,2.015]
[1751986562914,1.69010888,658.62,658.01,2.015]
[1751986563620,1.69010888,658.6,658.01,2.015]
[1751986564320,1.69010888,658.61,658.01,2.015]
[1751986564718,1.69010888,658.6,658.01,2.015]
[1751986565618,0.9832377,658.74,658.01,2.015]
[1751986565821,0.9832377,658.88,658.01,2.015]
[1751986566022,2.25278711,658.74,658.01,2.015]
[1751986566319,1.68959033,658.6,658.01,2.015]
[1751986567420,1.68959033,658.59,658.01,2.015]
[1751986567825,0.9832377,658.72,658.01,2.015]
[1751986568024,1.689279,658.6,658.01,2.015]
[1751986568323,1.689279,658.61,658.01,2.015]
[1751986570328,1.689279,658.62,658.01,2.015]
[1751986571128,1.689279,658.56,658.01,2.015]
[1751986571328,1.689279,658.57,658.01,2.015]
[1751986573228,1.689279,658.58,658.01,2.015]
[1751986574335,1.689279,658.59,658.01,2.015]
[1751986575835,1.689279,658.6,658.01,2.015]
[1751986576232,1.689279,658.59,658.01,2.015]
[1751986576836,1.689279,658.62,658.01,2.015]
[1751986577938,1.689279,658.64,658.01,2.015]
[1751986578138,1.689279,658.7,658.01,2.015]
[1751986578337,1.689279,658.72,658.01,2.015]
[1751986580137,1.689279,658.71,658.01,2.015]
[1751986580942,1.689279,658.72,658.01,2.015]
[1751986581242,1.689279,658.69,658.01,2.015]
[1751986581445,1.689279,658.71,658.01,2.015]
[1751986583241,1.689279,658.7,658.01,2.015]
[1751986583441,0.26412459,659.17,658.01,2.015]
[1751986583442,1.689279,658.71,658.01,2.015]
[1751986584649,1.689279,658.71,657.91,1.70167851]
[1751986584945,1.689279,658.7,657.91,1.70167851]
[1751986585344,1.689279,658.69,657.9,1.70167851]
[1751986585848,1.689279,658.69,657.89,1.70167851]
[1751986586346,1.689279,658.69,657.9,1.70167851]
[1751986586746,1.689279,658.69,657.89,1.70167851]
[1751986587045,1.689279,658.68,657.89,1.70167851]
[1751986587245,1.689279,658.68,657.86,0.26432622]
[1751986587445,1.689279,658.63,657.9,1.533]
[1751986589152,1.689279,658.64,657.9,1.533]
[1751986589448,1.689279,658.63,657.9,1.533]
[1751986590258,1.689279,658.62,657.9,1.533]
[1751986590550,1.689279,658.58,657.9,1.533]
[1751986591260,1.689279,658.59,657.9,1.533]
[1751986591753,1.689279,658.58,657.9,1.533]
[1751986592354,1.689279,658.59,657.9,1.533]
[1751986597255,1.689279,658.6,657.9,1.533]
[1751986597456,1.689279,658.59,657.9,1.533]
[1751986598255,1.689279,658.62,657.9,1.533]
[1751986599154,1.689279,658.66,657.9,1.533]
[1751986599354,1.689279,658.75,657.9,1.533]
[1751986599652,1.689279,658.74,657.9,1.533]
[1751986600253,1.689279,658.75,657.9,1.533]
[1751986601355,2.25278711,658.94,657.9,1.533]
[1751986601559,1.69031635,658.74,657.9,1.533]
[1751986601757,1.69031635,658.75,657.9,1.533]
[1751986602157,1.69031635,658.74,657.9,1.533]
[1751986602362,1.69031635,658.73,657.9,1.533]
[1751986604164,1.69031635,658.72,657.9,1.533]
[1751986604964,1.69031635,658.73,657.9,1.533]
[1751986605464,1.69031635,658.72,657.9,1.533]
[1751986605765,1.69031635,658.73,657.9,1.533]
[1751986606163,1.69031635,658.72,657.9,1.533]
[1751986607361,1.69031635,658.7,657.9,1.533]
[1751986607965,1.69031635,658.65,657.92,1.69871887]
[1751986608365,1.69031635,658.66,657.9,3.23171887]
[1751986608767,1.69031635,658.66,657.9,1.533]
[1751986609166,1.69031635,658.66,657.9,3.23171887]
[1751986609867,1.69031635,658.65,657.9,3.23171887]
[1751986610167,1.69031635,658.65,657.91,1.69871887]
[1751986610368,1.69031635,658.64,657.9,3.23171887]
[1751986610566,1.69031635,658.65,657.91,1.69871887]
[1751986610862,1.69031635,658.64,657.91,1.69871887]
[1751986611268,1.69031635,658.63,657.92,1.69871887]
[1751986611468,1.69031635,658.64,657.92,1.69871887]
[1751986611669,1.69031635,658.63,657.92,1.69871887]
[1751986612170,1.69031635,658.62,657.93,1.69871887]
[1751986613169,1.69031635,658.61,657.93,1.69871887]
[1751986614170,1.69031635,658.61,657.9,1.533]
[1751986614171,1.69031635,658.6,657.94,1.69871887]
[1751986614670,1.69031635,658.62,657.92,1.69871887]
[1751986614969,1.69031635,658.61,657.91,1.69871887]
[1751986615164,1.69031635,658.61,657.92,1.69871887]
[1751986616173,1.69031635,658.61,657.93,1.69871887]
[1751986616472,1.69031635,658.61,657.94,1.69871887]
[1751986616868,1.69031635,658.6,657.93,1.69871887]
[1751986617170,2.25278711,658.76,657.9,1.533]
[1751986617171,1.69031635,658.59,657.94,1.69871887]
[1751986618172,1.69031635,658.58,657.97,1.69871887]
[1751986618869,1.69031635,658.58,657.98,1.69871887]
[1751986619169,1.69031635,658.57,657.98,1.69871887]
[1751986620469,1.69031635,658.57,657.99,1.69871887]
[1751986621473,1.69031635,658.56,657.99,1.69871887]
[1751986621669,1.69031635,658.57,657.99,1.69871887]
[1751986623072,0.98656957,658.71,657.98,1.69871887]
[1751986623073,1.69031635,658.56,657.98,1.69871887]
[1751986623775,0.26435031,658.54,657.97,1.69871887]
[1751986624375,0.26435031,658.54,657.98,1.69871887]
[1751986624677,1.69031635,658.53,658.0,1.69871887]
[1751986625276,1.69031635,658.53,658.01,1.69871887]
[1751986625773,1.69031635,658.52,658.01,1.69871887]
[1751986628677,1.69031635,658.53,658.02,1.69871887]
[1751986628877,1.69031635,658.53,658.03,1.69871887]
[1751986629479,1.69031635,658.54,658.03,1.69871887]
[1751986631177,1.69031635,658.58,658.06,1.69871887]
[1751986631680,1.69031635,658.57,658.07,1.69871887]
[1751986631980,1.69031635,658.57,658.08,1.69871887]
[1751986632179,1.69031635,658.57,658.07,1.69871887]
[1751986632679,1.69031635,658.57,658.08,1.69871887]
[1751986633577,1.69031635,658.57,658.07,1.69871887]
[1751986635380,1.69031635,658.56,658.07,1.69871887]
[1751986636591,1.69031635,658.56,658.06,1.69871887]
[1751986636886,1.69031635,658.59,658.01,1.69871887]
[1751986637084,1.69031635,658.6,658.01,1.69871887]
[1751986637287,1.69031635,658.6,658.02,1.69871887]
[1751986637488,1.69031635,658.6,658.01,1.69871887]
[1751986639486,1.69031635,658.6,658.02,1.69871887]
[1751986643587,1.69031635,658.6,658.01,1.69871887]
[1751986643788,1.69031635,658.6,658.02,1.69871887]
[1751986644992,1.69031635,658.6,658.01,1.69871887]
[1751986645189,1.69031635,658.6,658.02,1.69871887]
[1751986646493,1.69031635,658.56,658.08,1.69871887]
[1751986647496,1.69031635,658.56,658.09,1.69871887]
[1751986647893,0.26432822,658.64,657.92,1.69871887]
[1751986649298,0.26432822,658.64,657.91,1.69871887]
[1751986649992,0.26432822,658.64,657.92,3.11171887]
[1751986650198,0.26432822,658.64,657.93,1.69871887]
[1751986651198,0.26432822,658.64,657.94,1.69871887]
[1751986652394,0.26432822,658.64,657.96,1.69871887]
[1751986653500,0.26432822,658.64,657.95,1.69871887]
[1751986656201,1.69031635,658.63,658.05,1.69871887]
[1751986658006,1.69031635,658.61,658.08,1.69871887]
[1751986659404,1.69031635,658.6,658.08,1.69871887]
[1751986663003,1.69031635,658.63,658.11,1.69871887]
[1751986663503,1.69031635,658.63,658.1,1.69871887]
[1751986663807,1.69031635,658.61,658.13,1.69871887]
[1751986664002,1.69031635,658.61,658.14,1.69871887]
[1751986664206,1.69031635,658.62,658.13,1.69871887]
[1751986664809,1.69031635,658.61,658.12,1.69871887]
[1751986665208,1.69031635,658.61,658.13,1.69871887]
[1751986665806,1.69031635,658.58,658.11,1.69871887]
[1751986666512,1.69031635,658.58,658.12,1.69871887]
[1751986667212,1.69031635,658.58,658.11,1.69871887]
[1751986669315,1.69031635,658.58,658.12,1.69871887]
[1751986670817,1.69031635,658.58,658.11,1.69871887]
[1751986672516,1.69031635,658.58,658.12,1.69871887]
[1751986673012,1.69031635,658.61,658.14,1.69871887]
[1751986673417,1.69031635,658.61,658.15,1.69871887]
[1751986674216,1.69031635,658.6,658.15,1.69871887]
[1751986674414,1.69031635,658.6,658.16,1.499]
[1751986676021,1.69031635,658.61,658.16,3.19771887]
[1751986676417,1.69031635,658.66,658.2,1.69871887]
[1751986676619,1.69031635,658.65,658.2,1.69871887]
[1751986677019,1.69031635,658.66,658.19,1.69871887]
[1751986677322,1.69031635,658.67,658.18,1.69871887]
[1751986677519,1.69031635,658.7,658.21,1.69871887]
[1751986678224,1.69031635,658.7,658.2,1.69871887]
[1751986678627,1.69031635,658.7,658.21,1.69871887]
[1751986679225,1.69031635,658.7,658.2,1.69871887]
[1751986679623,1.69031635,658.71,658.2,1.69871887]
[1751986680021,1.69031635,658.7,658.19,1.69871887]
[1751986680622,1.69031635,658.7,658.2,1.69871887]
[1751986680920,1.69031635,658.7,658.19,1.69871887]
[1751986681923,1.69031635,658.7,658.18,1.69871887]
[1751986682126,1.69031635,658.71,658.18,1.69871887]
[1751986684528,1.69031635,658.71,658.17,1.69871887]
[1751986684827,1.69031635,658.71,658.18,1.69871887]
[1751986685128,1.69031635,658.71,658.17,1.69871887]
[1751986685326,1.69031635,658.71,658.18,1.69871887]
[1751986685526,1.69031635,658.71,658.19,1.69871887]
[1751986686522,1.69031635,658.71,658.2,1.69871887]
[1751986687127,1.69031635,658.71,658.19,1.69871887]
[1751986687327,1.69031635,658.71,658.2,1.69871887]
[1751986687925,1.69031635,658.69,658.21,1.69871887]
[1751986688129,1.69031635,658.7,658.21,1.69871887]
[1751986688425,1.69031635,658.71,658.18,1.69871887]
[1751986688929,1.69031635,658.72,658.18,1.69871887]
[1751986690127,1.69031635,658.71,658.17,1.69871887]
[1751986692236,1.69031635,658.72,658.17,1.69871887]
[1751986695139,0.26428406,658.76,658.16,1.499]
[1751986705038,1.69031635,658.74,658.16,1.499]
[1751986705243,1.69031635,658.73,658.16,1.499]
[1751986706644,1.69031635,658.72,658.17,1.69871887]
[1751986707945,1.69031635,658.72,658.16,3.19771887]
[1751986708545,0.26428406,658.76,658.16,1.499]
[1751986708546,1.69031635,658.74,658.16,1.499]
[1751986708745,1.69031635,658.75,658.16,1.499]
[1751986710344,1.69031635,658.74,658.16,1.499]
[1751986715452,1.69031635,658.71,658.18,1.69871887]
[1751986715656,1.69031635,658.7,658.18,1.69871887]
[1751986716356,0.26428406,658.76,658.16,1.499]
[1751986716557,1.69688346,658.7,658.18,1.70527287]
[1751986718459,1.69688346,658.69,658.2,1.70527287]
[1751986718658,1.69688346,658.68,658.21,1.70527287]
[1751986720260,1.69688346,658.68,658.22,1.70527287]
[1751986721160,1.69688346,658.68,658.23,1.296]
[1751986722061,1.69688346,658.67,658.23,3.00127287]
[1751986723857,1.69688346,658.68,658.23,1.296]
[1751986726263,1.69688346,658.67,658.23,1.296]
[1751986728366,1.69688346,658.67,658.23,3.00127287]
[1751986729271,1.69688346,658.66,658.23,3.00127287]
[1751986731169,1.69688346,658.66,658.24,1.70527287]
[1751986731367,1.69688346,658.66,658.23,3.00127287]
[1751986733368,1.69688346,658.65,658.24,1.70527287]
[1751986733773,1.69688346,658.65,658.25,1.70527287]
[1751986734272,1.69688346,658.64,658.25,1.70527287]
[1751986734872,1.69688346,658.64,658.26,1.70527287]
[1751986736172,1.69688346,658.63,658.27,1.70527287]
[1751986737471,1.69688346,658.62,658.27,1.70527287]
[1751986737973,1.69688346,658.63,658.26,1.70527287]
[1751986738371,1.69688346,658.63,658.25,1.70527287]
[1751986738575,1.69688346,658.64,658.25,1.70527287]
[1751986739576,1.69688346,658.63,658.25,1.70527287]
[1751986740477,1.69688346,658.64,658.25,1.70527287]
[1751986740878,1.69688346,658.64,658.26,1.407]
[1751986741278,1.69688346,658.63,658.26,3.11227287]
[1751986743779,1.69688346,658.64,658.26,1.407]
[1751986744185,0.9895284,658.75,658.26,1.407]
[1751986744186,1.69688346,658.7,658.26,1.407]
[1751986744486,1.69688346,658.71,658.26,1.407]
[1751986744780,1.69688346,658.75,658.26,1.407]
[1751986744981,1.69688346,658.76,658.26,1.407]
[1751986746283,1.69688346,658.77,658.26,1.407]
[1751986750181,1.69688346,658.76,658.26,1.407]
[1751986750580,1.69688346,658.75,658.26,1.407]
[1751986750786,1.69688346,658.78,658.26,1.407]
[1751986750982,0.26425797,658.82,658.26,1.407]
[1751986754087,0.26425797,658.82,658.29,1.70784002]
[1751986754285,0.26425797,658.82,658.26,1.407]
[1751986754286,0.26425797,658.82,658.28,1.70784002]
[1751986754787,1.96249259,658.82,658.34,1.70784002]
[1751986755291,0.26425797,658.82,658.34,1.70784002]
[1751986755488,0.26425797,658.82,658.33,1.70784002]
[1751986757595,0.26425797,658.82,658.32,1.70784002]
[1751986758798,0.26425797,658.82,658.31,1.70784002]
[1751986758999,0.26425797,658.82,658.26,1.407]
[1751986759798,0.26425797,658.82,658.24,1.70784002]
[1751986763106,0.26425797,658.82,658.25,1.746]
[1751986768810,0.26425797,658.82,658.29,1.70784002]
[1751986769712,0.26425797,658.82,658.28,1.70784002]
[1751986771411,0.26425797,658.82,658.29,1.70784002]
[1751986772112,0.26425797,658.82,658.28,1.70784002]
[1751986774913,0.26425797,658.82,658.3,1.70784002]
[1751986775617,0.26425797,658.82,658.29,1.70784002]
[1751986776828,0.26425797,658.82,658.31,1.70784002]
[1751986777120,0.26425797,658.82,658.25,1.746]
[1751986785927,1.69823462,658.75,658.25,1.746]
[1751986788228,1.69823462,658.73,658.25,1.746]
[1751986788438,1.69823462,658.71,658.25,1.746]
[1751986790133,1.69823462,658.72,658.25,1.746]
[1751986790429,1.69823462,658.73,658.25,1.746]
[1751986792431,1.69823462,658.72,658.25,1.746]
[1751986793531,1.69823462,658.73,658.25,1.746]
[1751986794237,1.69823462,658.72,658.25,1.746]
[1751986794633,1.69823462,658.73,658.25,1.746]